bitfinex/quotes_ETHUSD_20250905
["timestamp","ask_amount","ask_price","bid_price","bid_amount"]
[1757042761207,9.40383178,4308.8,4308.7,0.3034]
[1757042761373,9.40383178,4308.8,4308.7,0.7576]
[1757042761710,9.85203178,4308.8,4308.7,0.7576]
[1757042762500,9.85203178,4308.8,4308.7,0.3034]
[1757042763575,9.85203178,4308.8,4308.7,0.004]
[1757042764124,5.76903178,4308.8,4308.7,1.2018]
[1757042764404,2.76903178,4308.8,4308.7,1.2018]
[1757042764781,5.76903178,4308.8,4308.7,1.2018]
[1757042764986,2.76903178,4308.8,4308.7,0.7576]
[1757042765397,5.76903178,4308.8,4308.7,1.2018]
[1757042765909,5.76903178,4308.8,4308.7,0.7576]
[1757042766809,5.76903178,4308.8,4308.7,0.3034]
[1757042767382,9.73603178,4308.8,4308.7,0.7576]
[1757042768501,9.73603178,4308.8,4308.7,0.004]
[1757042768502,15.29571388,4308.8,4308.7,0.004]
[1757042768702,16.98451388,4308.8,4308.7,0.004]
[1757042768897,18.69451388,4308.8,4308.7,1e-08]
[1757042769585,6.11288564,4308.7,4308.6,1e-08]
[1757042770114,6.11310113,4308.3,4308.2,0.004]
[1757042770311,15.45318323,4308.3,4308.2,0.004]
[1757042770482,16.66038323,4308.3,4308.2,0.004]
[1757042770682,17.27268323,4308.3,4308.2,0.004]
[1757042771386,17.39132516,4308.3,4308.2,0.004]
[1757042771587,16.65154505,4308.3,4308.2,0.004]
[1757042771918,12.22134505,4308.3,4308.2,0.004]
[1757042772215,16.18734505,4308.3,4308.2,0.004]
[1757042772398,16.18734505,4308.3,4307.3,0.4713]
[1757042772598,2.43731665,4307.9,4307.3,0.4713]
[1757042772786,9.42648801,4307.9,4307.3,0.4713]
[1757042772988,14.66461864,4307.9,4307.3,0.4713]
[1757042774996,13.92161864,4307.9,4307.5,0.4713]
[1757042780528,13.92161864,4307.9,4307.8,0.8055]
[1757042780902,13.92161864,4307.9,4307.8,0.3342]
[1757042781213,13.92161864,4307.9,4307.8,0.029]
[1757042782698,14.22281864,4307.9,4307.8,0.029]
[1757042783823,13.92061864,4307.9,4307.8,0.8055]
[1757042784215,5.43731665,4307.9,4307.8,0.8055]
[1757042784415,9.40231665,4307.9,4307.8,0.8055]
[1757042784606,9.40231665,4307.9,4307.8,1.2593]
[1757042784923,9.40231665,4307.9,4307.8,0.8055]
[1757042785123,9.40231665,4307.9,4307.8,1.2593]
[1757042786528,9.40231665,4307.9,4307.8,0.8055]
[1757042790122,14.22181864,4307.9,4307.8,0.029]
[1757042790323,14.66361864,4307.9,4307.8,0.029]
[1757042790825,14.22181864,4307.9,4307.8,0.029]
[1757042791027,14.66361864,4307.9,4307.8,0.029]
[1757042793848,10.69861864,4307.9,4307.8,0.029]
[1757042794050,14.66261864,4307.9,4307.8,0.029]
[1757042794416,10.69861864,4307.9,4307.8,0.029]
[1757042794616,14.66261864,4307.9,4307.8,0.029]
[1757042798016,14.22081864,4307.9,4307.8,0.029]
[1757042798215,13.91961864,4307.9,4307.8,0.029]
[1757042799622,9.95561864,4307.9,4307.8,0.029]
[1757042799820,13.91861864,4307.9,4307.8,0.029]
[1757042800552,14.22251864,4307.9,4307.8,0.029]
[1757042806338,14.68491864,4307.9,4307.8,0.029]
[1757042809261,14.68491864,4307.9,4307.8,0.029]
[1757042812656,14.22251864,4307.9,4307.8,0.029]
[1757042812861,14.68491864,4307.9,4307.8,0.029]
[1757042815554,15.47691864,4307.9,4307.8,0.029]
[1757042818470,15.01451864,4307.9,4307.8,0.029]
[1757042818664,11.05151864,4307.9,4307.8,0.029]
[1757042818962,15.01151864,4307.9,4307.8,0.029]
[1757042819262,15.47391864,4307.9,4307.8,0.029]
[1757042820039,15.01151864,4307.9,4307.8,0.029]
[1757042820234,10.74761864,4307.9,4307.8,0.029]
[1757042820440,0.116,4307.9,4307.8,0.7991]
[1757042820641,2.43731665,4307.9,4307.8,1.2587]
[1757042820833,5.43731665,4307.9,4307.8,0.5076]
[1757042821036,5.43731665,4307.9,4307.8,0.029]
[1757042821467,10.16261665,4307.9,4307.8,0.029]
[1757042821659,10.95461665,4307.9,4307.8,0.029]
[1757042826642,15.93171864,4307.9,4307.8,1e-08]
[1757042827965,11.41241665,4307.9,4307.8,1e-08]
[1757042828473,0.792,4307.3,4306.8,1e-08]
[1757042828663,6.11439485,4305.9,4305.8,0.025]
[1757042828863,17.62229684,4305.9,4305.8,0.025]
[1757042829064,12.75509684,4305.9,4305.8,1e-08]
[1757042829272,17.15009684,4305.9,4305.8,1e-08]
[1757042829590,13.09549485,4305.9,4305.8,1e-08]
[1757042830311,12.75509684,4305.9,4305.8,1e-08]
[1757042830471,16.71309684,4305.9,4305.8,1e-08]
[1757042830667,17.15009684,4305.9,4305.8,1e-08]
[1757042831468,17.61379684,4305.9,4305.8,1e-08]
[1757042832279,17.3212767,4305.9,4305.8,1e-08]
[1757042833006,13.3632767,4305.9,4305.8,1e-08]
[1757042833203,17.3212767,4305.9,4305.8,1e-08]
[1757042833507,18.07186411,4305.9,4305.8,1e-08]
[1757042833915,12.07057471,4305.9,4305.8,0.31610001]
[1757042834204,12.07057471,4305.9,4305.8,0.80480001]
[1757042834572,9.07057471,4305.9,4305.8,0.80480001]
[1757042835010,9.07057471,4305.9,4305.8,0.48870001]
[1757042835195,9.07057471,4305.9,4305.8,0.80480001]
[1757042835393,12.07057471,4305.9,4305.8,0.80480001]
[1757042835589,8.11257471,4305.9,4305.8,0.80480001]
[1757042835783,11.27857471,4305.9,4305.8,0.80480001]
[1757042835985,11.27857471,4305.9,4305.8,1.26130001]
[1757042836777,7.32057471,4305.9,4305.8,1.26130001]
[1757042837089,4.24517986,4305.9,4305.8,1.26130001]
[1757042837409,0.4786,4306.0,4305.8,1.38743001]
[1757042837617,0.4786,4306.0,4305.9,0.9452]
[1757042838108,0.4786,4306.0,4305.9,1.2613]
[1757042838496,6.28006851,4306.6,4305.9,1.2613]
[1757042838696,2.43807574,4306.5,4306.0,0.9452]
[1757042838895,2.43807574,4306.5,4306.4,0.3161]
[1757042839210,2.43807574,4306.5,4306.4,1.2613]
[1757042839514,3.13621368,4306.5,4306.4,1.2613]
[1757042843308,0.81413794,4306.5,4306.4,1.2613]
[1757042844021,0.69813794,4306.5,4306.4,1.2613]
[1757042844188,6.02020922,4306.5,4306.4,1.2613]
[1757042844388,3.69813794,4306.5,4306.4,1.2613]
[1757042845681,6.02020922,4306.5,4306.4,1.2613]
[1757042846307,3.69813794,4306.5,4306.4,1.2613]
[1757042847303,3.69913794,4306.5,4306.4,1.2613]
[1757042848713,3.0,4306.4,4305.9,0.6047]
[1757042848914,2.32227531,4306.2,4305.9,0.6047]
[1757042849224,2.32227531,4306.2,4306.0,0.4887]
[1757042849522,0.6047,4306.1,4305.9,0.116]
[1757042849727,0.6047,4306.1,4305.9,0.5725]
[1757042849889,0.6047,4306.1,4306.0,0.7726]
[1757042850084,0.6047,4306.1,4306.0,1.3773]
[1757042850608,2.32214285,4306.4,4306.0,1.3773]
[1757042850806,3.0,4306.3,4306.1,0.9452]
[1757042851110,3.69812171,4306.4,4306.1,0.9452]
[1757042851287,3.69812171,4306.4,4306.2,1.2613]
[1757042851610,3.69812171,4306.4,4306.3,0.4887]
[1757042851817,3.02024691,4306.4,4306.3,0.8048]
[1757042852515,3.02024691,4306.4,4306.3,0.3161]
[1757042852693,0.69812171,4306.4,4306.0,0.116]
[1757042852898,0.69812171,4306.4,4306.0,0.6047]
[1757042852899,3.31565408,4306.4,4306.0,0.6047]
[1757042853088,3.0,4306.3,4306.0,0.6047]
[1757042853289,3.0,4306.3,4306.0,0.116]
[1757042853515,3.437,4306.3,4305.8,0.00400001]
[1757042853713,3.437,4306.3,4305.8,0.60870001]
[1757042854017,2.32233133,4306.1,4305.8,0.60870001]
[1757042854586,0.69816069,4306.0,4305.8,0.60870001]
[1757042854920,0.69816069,4306.0,4305.9,0.4887]
[1757042855115,0.69816069,4306.0,4305.9,0.8048]
[1757042855321,0.69816069,4306.0,4305.9,1.2613]
[1757042855695,0.69816069,4306.0,4305.9,0.8048]
[1757042856200,3.0205016,4306.0,4305.9,0.8048]
[1757042856396,0.69816069,4306.0,4305.9,0.3161]
[1757042856602,0.69816069,4306.0,4305.8,0.12000001]
[1757042857307,0.69816069,4306.0,4305.9,0.8048]
[1757042858319,0.69816069,4306.0,4305.9,1.2613]
[1757042859919,0.69816069,4306.0,4305.9,0.8048]
[1757042861626,3.0,4306.4,4305.9,1.3934]
[1757042861824,0.69811683,4306.3,4306.0,0.9518]
[1757042862122,0.69811683,4306.3,4306.2,0.2879]
[1757042862320,2.32213667,4306.4,4306.2,0.2879]
[1757042862523,3.69811683,4306.2,4305.9,0.116]
[1757042862824,3.69811683,4306.2,4305.9,4.5482]
[1757042863121,0.4792,4306.1,4305.9,4.5482]
[1757042863700,0.4792,4306.1,4306.0,0.2879]
[1757042864221,0.4792,4306.1,4306.0,0.7671]
[1757042868979,0.001,4306.4,4306.0,0.7671]
[1757042869143,0.4792,4306.3,4306.0,0.7671]
[1757042870169,0.4792,4306.3,4306.1,0.4792]
[1757042871577,0.4792,4306.3,4305.9,4.069]
[1757042871741,0.4792,4306.3,4306.0,0.4792]
[1757042871941,0.4792,4306.3,4306.1,0.4792]
[1757042874588,0.4792,4306.3,4306.2,1.22192]
[1757042874755,0.001,4306.4,4306.3,2.32217913]
[1757042874951,0.001,4306.4,4306.3,7.22497913]
[1757042875183,0.001,4306.4,4306.3,7.51287913]
[1757042882216,0.001,4306.4,4306.3,4.7161]
[1757042882518,0.001,4306.4,4306.3,8.37807113]
[1757042882897,0.001,4306.4,4306.3,8.85067113]
[1757042888635,0.001,4306.4,4306.3,17.36756053]
[1757042888836,0.001,4306.4,4306.3,15.02756053]
[1757042889017,0.001,4306.5,4306.4,3.1141252]
[1757042889194,0.001,4306.5,4306.4,6.30293317]
[1757042889395,0.001,4306.5,4306.4,6.59183317]
[1757042890028,0.001,4306.5,4306.4,12.99183317]
[1757042893562,0.001,4306.5,4306.4,17.50882293]
[1757042894144,0.001,4306.5,4306.4,19.84882293]
[1757042894330,0.001,4306.5,4306.4,19.38922293]
[1757042895071,0.001,4306.5,4306.4,13.33003317]
[1757042895231,0.7297,4306.5,4306.4,15.0081252]
[1757042896133,0.3,4306.5,4306.4,8.6081252]
[1757042896363,0.7297,4306.5,4306.4,4.6621252]
[1757042896540,0.7297,4306.5,4306.4,8.6081252]
[1757042898126,0.7297,4306.5,4306.4,6.2681252]
[1757042898850,0.3,4306.5,4306.4,6.2681252]
[1757042899059,0.3,4306.5,4306.4,2.3221252]
[1757042899060,0.7297,4306.5,4306.4,2.3221252]
[1757042899225,0.7297,4306.5,4306.4,6.2681252]
[1757042900342,0.7297,4306.5,4306.4,2.3221252]
[1757042900740,0.7297,4306.5,4306.4,6.2671252]
[1757042900942,0.7297,4306.5,4306.3,0.116]
[1757042901141,0.9034,4306.4,4306.1,1.711]
[1757042901341,0.4297,4306.3,4306.2,3.945]
[1757042901567,0.7287,4306.3,4306.2,3.945]
[1757042902355,1.2024,4306.3,4306.2,3.945]
[1757042903626,1.2024,4306.3,4306.1,1.831]
[1757042903823,0.299,4306.3,4306.2,3.945]
[1757042904050,0.299,4306.3,4306.1,1.831]
[1757042904254,3.299,4306.3,4306.2,3.945]
[1757042904971,1.2024,4306.3,4306.2,3.945]
[1757042908564,0.7287,4306.3,4306.1,1.831]
[1757042908757,0.299,4306.3,4306.2,3.945]
[1757042908956,0.7287,4306.3,4306.2,3.945]
[1757042909688,0.001,4306.5,4306.2,3.96822233]
[1757042909849,0.001,4306.5,4306.4,2.3221252]
[1757042910045,0.001,4306.5,4306.4,6.2661252]
[1757042910253,0.7297,4306.5,4306.4,4.06]
[1757042910554,1.2034,4306.5,4306.4,4.06]
[1757042910951,0.7297,4306.5,4306.4,4.06]
[1757042911679,3.52547128,4306.5,4306.4,3.944]
[1757042915570,3.52547128,4306.5,4306.1,1.715]
[1757042915774,3.09577128,4306.5,4306.2,3.944]
[1757042915981,0.4297,4306.4,4306.2,3.944]
[1757042916188,2.62207128,4306.5,4306.2,3.944]
[1757042916392,2.62207128,4306.5,4306.1,1.715]
[1757042916393,0.299,4306.3,4306.1,1.715]
[1757042916568,0.7287,4306.3,4306.2,3.944]
[1757042916772,0.299,4306.3,4306.2,3.944]
[1757042916983,0.7287,4306.3,4306.2,3.944]
[1757042917487,0.299,4306.3,4306.2,3.944]
[1757042917692,0.001,4306.5,4306.2,4.2329]
[1757042917903,0.001,4306.5,4306.3,0.116]
[1757042918101,0.001,4306.5,4306.4,3.943]
[1757042918594,0.3,4306.5,4306.4,3.943]
[1757042918763,0.7297,4306.5,4306.4,3.943]
[1757042918959,0.001,4306.5,4306.4,3.943]
[1757042919204,0.001,4306.5,4306.4,7.6926652]
[1757042919401,0.001,4306.5,4306.4,5.93034]
[1757042920264,0.001,4306.5,4306.4,5.48654]
[1757042921191,0.001,4306.5,4306.4,8.2524652]
[1757042921362,0.001,4306.5,4306.4,4.99314]
[1757042921564,0.001,4306.5,4306.4,5.48654]
[1757042926376,0.001,4306.5,4306.4,4.68574]
[1757042928273,0.001,4306.5,4306.4,4.059]
[1757042929188,0.001,4306.5,4306.4,6.3811252]
[1757042929386,0.001,4306.5,4306.4,7.1819252]
[1757042929987,0.001,4306.5,4306.4,7.6257252]
[1757042930480,0.001,4306.5,4306.4,4.8598]
[1757042930806,0.001,4306.5,4306.4,4.059]
[1757042931490,0.001,4306.5,4306.4,5.22575776]
[1757042931702,0.001,4306.5,4306.4,8.04128296]
[1757042932410,0.001,4306.5,4306.4,5.22575776]
[1757042932717,0.001,4306.5,4306.4,4.91835776]
[1757042933203,0.001,4306.5,4306.4,7.23848296]
[1757042933709,0.001,4306.5,4306.4,8.03928296]
[1757042934412,0.001,4306.5,4306.4,5.71715776]
[1757042935294,0.001,4306.5,4306.4,5.22375776]
[1757042935493,0.001,4306.5,4306.4,4.91635776]
[1757042935894,0.001,4306.5,4306.4,7.23848296]
[1757042936313,0.7553,4306.5,4306.4,4.057]
[1757042939510,0.2954,4306.5,4306.4,4.057]
[1757042939694,0.001,4306.5,4306.4,4.057]
[1757042942309,0.001,4306.5,4306.4,4.8578]
[1757042942917,0.001,4306.5,4306.4,7.1799252]
[1757042943229,0.001,4306.5,4306.4,8.06982249]
[1757042947305,0.001,4306.5,4306.4,8.51362249]
[1757042953919,0.001,4306.5,4306.4,8.06982249]
[1757042954121,0.001,4306.5,4306.4,8.51412249]
[1757042954833,0.001,4306.5,4306.4,15.37111225]
[1757042955150,0.001,4306.5,4306.4,10.85412249]
[1757042964038,0.001,4306.9,4306.8,2.32190953]
[1757042964239,0.001,4306.9,4306.8,6.7212995]
[1757042964438,0.7447,4306.9,4306.8,6.8372995]
[1757042965231,0.3035,4306.9,4306.8,6.8372995]
[1757042966160,0.001,4306.9,4306.8,6.8372995]
[1757042968654,0.001,4306.9,4306.8,7.1421995]
[1757042968864,0.001,4306.9,4306.8,7.6210995]
[1757042971153,0.7447,4306.9,4306.8,2.9022995]
[1757042971355,0.7447,4306.9,4306.8,6.37190953]
[1757042971356,1.2076,4306.9,4306.8,6.37190953]
[1757042971932,0.7447,4306.9,4306.8,6.37190953]
[1757042972762,0.7447,4306.9,4306.8,8.08290953]
[1757042974244,0.001,4306.9,4306.8,8.08290953]
[1757042975770,0.001,4306.9,4306.8,8.38780953]
[1757042975987,0.001,4306.9,4306.8,9.93768987]
[1757042977843,0.3035,4306.9,4306.8,9.15388987]
[1757042978069,0.7447,4306.9,4306.8,9.15388987]
[1757042979071,0.3035,4306.9,4306.8,9.15388987]
[1757042979259,0.001,4306.9,4306.8,9.93758987]
[1757042981472,0.2873,4306.9,4306.8,9.15388987]
[1757042981674,0.7174,4306.9,4306.8,9.15388987]
[1757042982059,0.7174,4306.9,4306.8,5.21988987]
[1757042982258,1.175,4306.9,4306.8,5.759]
[1757042983669,0.7174,4306.9,4306.8,5.759]
[1757042984286,0.7174,4306.9,4306.8,8.08090953]
[1757042984579,0.7174,4306.9,4306.8,5.759]
[1757042984959,0.7174,4306.9,4306.8,8.08090953]
[1757042985757,0.7174,4306.9,4306.8,5.759]
[1757042986748,0.7174,4306.9,4306.8,8.08090953]
[1757042988484,0.7174,4306.9,4306.8,5.759]
[1757042988861,0.7174,4306.9,4306.8,5.757]
[1757042989680,0.7174,4306.9,4306.8,8.07890953]
[1757042989879,0.2873,4306.9,4306.8,8.07890953]
[1757042992479,0.001,4306.9,4306.8,9.95405048]
[1757042992865,0.001,4306.9,4306.8,10.41375048]
[1757042994169,0.001,4306.9,4306.8,12.75375048]
[1757042996476,0.001,4307.0,4306.9,2.32185562]
[1757042996676,0.001,4307.0,4306.9,5.54096359]
[1757042996872,0.001,4307.0,4306.9,5.83316359]
[1757042998194,0.001,4307.0,4306.9,12.23316359]
[1757042999913,0.001,4307.0,4306.9,11.77346359]
[1757043000116,0.7174,4307.0,4306.9,14.91776359]
[1757043000608,0.001,4307.0,4306.9,14.91776359]
[1757043002309,0.001,4307.0,4306.9,17.25776359]
[1757043003987,0.2873,4307.0,4306.9,10.98976359]
[1757043004308,0.2873,4307.0,4306.9,10.327]
[1757043004309,1.175,4307.0,4306.9,10.327]
[1757043004490,1.175,4307.0,4306.9,3.927]
[1757043005070,1.175,4307.0,4306.8,1.711]
[1757043005271,0.2873,4307.0,4306.9,6.24885562]
[1757043005898,0.7174,4307.0,4306.9,6.24885562]
[1757043006479,0.7174,4307.0,4306.9,6.36485562]
[1757043008009,0.7174,4307.0,4306.9,4.043]
[1757043008224,1.175,4307.0,4306.9,0.116]
[1757043008429,1.175,4307.0,4306.9,3.927]
[1757043012424,0.001,4307.0,4306.9,4.8053]
[1757043012598,0.001,4307.0,4306.9,5.50028]
[1757043013328,0.001,4307.0,4306.9,7.82213562]
[1757043014035,0.001,4307.0,4306.9,8.25563562]
[1757043014232,0.001,4307.0,4306.9,8.34867608]
[1757043014617,0.001,4307.4,4307.3,2.32164]
[1757043014824,0.001,4307.4,4307.3,6.71197625]
[1757043015010,0.001,4307.4,4307.3,8.02377625]
[1757043016013,0.001,4307.4,4307.3,7.59027625]
[1757043016209,0.001,4307.4,4307.3,8.02377625]
[1757043016742,0.001,4307.4,4307.3,7.29937625]
[1757043017243,0.001,4307.4,4307.3,7.59027625]
[1757043018549,0.001,4307.4,4307.3,8.02377625]
[1757043020143,0.001,4307.4,4307.3,7.59027625]
[1757043020321,0.001,4307.4,4307.3,7.29937625]
[1757043020636,0.2998,4307.4,4307.3,6.82697625]
[1757043022042,0.2998,4307.4,4307.3,2.90197625]
[1757043022243,0.2998,4307.4,4307.3,6.82597625]
[1757043022628,0.001,4307.4,4307.3,6.82597625]
[1757043022829,0.001,4307.4,4307.3,7.58827625]
[1757043024144,0.001,4307.4,4307.3,7.11687625]
[1757043025555,0.001,4307.4,4307.3,6.82597625]
[1757043025753,0.001,4307.4,4307.3,10.36177625]
[1757043026949,0.001,4307.4,4307.3,9.45687625]
[1757043027127,0.001,4307.4,4307.3,9.45587625]
[1757043027524,0.001,4307.4,4307.3,5.24197625]
[1757043027724,0.001,4307.4,4307.3,15.85587625]
[1757043028054,0.001,4307.4,4307.3,16.32727625]
[1757043028825,0.001,4307.4,4307.3,13.98727625]
[1757043029258,0.001,4307.4,4307.3,13.51587625]
[1757043034053,0.2998,4307.4,4307.3,6.82397625]
[1757043034268,0.2998,4307.4,4307.3,6.35964]
[1757043034571,0.001,4307.4,4307.3,12.75964]
[1757043036943,0.001,4307.4,4307.3,13.05054]
[1757043037150,0.001,4307.4,4307.3,13.95544]
[1757043037869,0.001,4307.4,4307.3,16.29544]
[1757043038175,0.001,4307.4,4307.3,18.56334797]
[1757043041280,0.001,4307.5,4307.4,2.3215861]
[1757043041447,0.001,4307.5,4307.4,3.2073861]
[1757043041644,0.001,4307.5,4307.4,3.4988861]
[1757043041846,0.001,4307.5,4307.4,9.99191206]
[1757043042083,0.001,4307.5,4307.4,12.25982003]
[1757043042258,0.001,4307.5,4307.4,11.82992003]
[1757043043844,0.001,4307.5,4307.4,14.16992003]
[1757043045082,0.001,4307.5,4307.4,14.59982003]
[1757043046262,0.001,4307.5,4307.4,14.16992003]
[1757043049655,0.001,4307.5,4307.4,14.59982003]
[1757043051170,0.001,4307.9,4307.4,14.59982003]
[1757043051171,0.001,4307.9,4307.8,2.32137053]
[1757043051388,0.001,4307.9,4307.8,8.18250758]
[1757043051594,0.001,4307.9,4307.8,8.29850758]
[1757043051813,0.2921,4307.9,4307.8,8.29850758]
[1757043051966,0.7262,4307.9,4307.8,8.29850758]
[1757043055095,0.2921,4307.9,4307.8,8.29850758]
[1757043055318,0.001,4307.9,4307.8,8.29850758]
[1757043055600,0.001,4307.9,4307.8,10.63850758]
[1757043057073,0.001,4307.9,4307.8,11.38590758]
[1757043060498,0.001,4307.9,4307.8,15.90174639]
[1757043061281,0.001,4307.9,4307.8,22.30174639]
[1757043063175,0.001,4308.0,4307.9,2.32131665]
[1757043063502,0.001,4308.0,4307.9,5.04512462]
[1757043063703,0.001,4308.0,4307.9,5.33662462]
[1757043063999,0.001,4308.0,4307.9,8.10652462]
[1757043065412,0.001,4308.2,4308.1,13.81295566]
[1757043065709,0.001,4308.7,4308.6,2.32093951]
[1757043065912,0.001,4308.7,4308.6,12.57877832]
[1757043066091,0.001,4308.7,4308.6,13.32617832]
[1757043066287,0.001,4308.7,4308.6,13.41917746]
[1757043066616,0.001,4308.7,4308.6,16.3372873]
[1757043067027,0.001,4308.7,4308.6,15.9073873]
[1757043068101,0.2921,4308.7,4308.6,5.93614849]
[1757043068306,1.2106,4308.7,4308.6,1.826]
[1757043068507,1.2106,4308.7,4308.6,5.742]
[1757043068904,1.2106,4308.7,4308.6,8.06293951]
[1757043069620,1.2106,4308.7,4308.6,5.742]
[1757043070899,1.2106,4308.7,4308.6,8.06293951]
[1757043071103,0.7262,4308.7,4308.6,8.06293951]
[1757043078045,0.001,4308.7,4308.6,8.85163951]
[1757043078246,0.001,4308.7,4308.6,10.42049143]
[1757043078834,0.001,4308.7,4308.6,9.63179143]
[1757043079238,1.2001,4308.7,4308.6,1.826]
[1757043079540,1.2001,4308.7,4308.6,8.06093951]
[1757043079925,0.7333,4308.7,4308.6,8.06093951]
[1757043080725,0.7333,4308.7,4308.6,5.74]
[1757043081843,0.7333,4308.7,4308.6,8.06093951]
[1757043084051,0.7333,4308.7,4308.6,5.74]
[1757043084360,1.2001,4308.7,4308.6,5.739]
[1757043085353,0.7333,4308.7,4308.6,5.739]
[1757043087567,1.2001,4308.7,4308.6,5.739]
[1757043088435,0.001,4308.7,4308.6,9.65504939]
[1757043088658,0.001,4308.7,4308.6,12.42964939]
[1757043090559,0.001,4308.7,4308.6,8.08204939]
[1757043090868,0.001,4308.7,4308.6,11.20534939]
[1757043091662,0.001,4308.7,4308.6,11.51224939]
[1757043092343,0.001,4308.7,4308.6,11.99404939]
[1757043092960,0.001,4308.7,4308.6,12.42864939]
[1757043095777,0.026,4308.8,4308.7,2.32088564]
[1757043095949,0.026,4308.8,4308.7,7.86840246]
[1757043096145,1e-08,4308.8,4308.7,6.60409361]
[1757043096369,0.001,4309.1,4309.0,3.11272406]
[1757043096682,0.001,4309.1,4309.0,12.30469549]
[1757043096860,0.001,4309.1,4309.0,20.02078825]
[1757043097175,0.001,4309.1,4309.0,22.28869622]
[1757043098757,0.001,4309.1,4309.0,22.38167807]
[1757043101674,0.001,4309.1,4309.0,17.94309622]
[1757043101988,0.001,4309.1,4309.0,20.57929622]
[1757043102689,0.001,4309.1,4309.0,21.07829622]
[1757043103185,0.001,4309.1,4309.0,23.41829622]
[1757043104378,0.001,4309.1,4309.0,18.16053203]
[1757043104567,0.001,4309.1,4309.0,17.66153203]
[1757043104963,0.001,4309.1,4309.0,18.16053203]
[1757043105396,0.001,4309.1,4309.0,14.25053203]
[1757043105581,0.001,4309.1,4309.0,18.16053203]
[1757043107385,0.001,4309.1,4309.0,14.25053203]
[1757043107580,0.001,4309.1,4309.0,18.15953203]
[1757043107779,0.001,4309.1,4309.0,14.25053203]
[1757043107990,0.001,4309.1,4309.0,18.15953203]
[1757043108998,0.001,4309.1,4309.0,24.09329622]
[1757043109162,0.001,4309.1,4309.0,24.65749622]
[1757043109364,0.001,4309.2,4309.1,3.1126702]
[1757043109556,0.001,4309.2,4309.1,5.87957817]
[1757043109760,0.001,4309.2,4309.1,6.17737817]
[1757043109980,0.001,4309.2,4309.1,12.57737817]
[1757043111975,0.001,4309.2,4309.1,14.91737817]
[1757043112504,0.001,4309.2,4309.1,14.41837817]
[1757043113201,0.001,4309.2,4309.1,14.91737817]
[1757043113772,0.001,4309.2,4309.1,20.26037817]
[1757043114489,0.001,4309.2,4309.1,19.76137817]
[1757043114792,0.001,4309.2,4309.1,20.26037817]
[1757043114990,0.2944,4309.2,4309.1,23.37157817]
[1757043115504,0.001,4309.2,4309.1,23.66937817]
[1757043115684,0.001,4309.2,4309.1,24.16837817]
[1757043116811,0.001,4309.2,4309.1,23.37157817]
[1757043117103,0.2944,4309.2,4309.1,18.67157817]
[1757043117407,0.7235,4309.2,4309.1,22.57957817]
[1757043117574,0.2944,4309.2,4309.1,22.57957817]
[1757043120208,0.001,4309.2,4309.1,22.87737817]
[1757043120504,0.001,4309.2,4309.1,23.37637817]
[1757043121503,0.001,4309.2,4309.1,24.16837817]
[1757043121707,0.001,4309.2,4309.1,24.61657817]
[1757043121879,0.001,4309.2,4309.1,24.16837817]
[1757043124010,0.001,4309.2,4309.1,24.61657817]
[1757043124917,0.001,4309.2,4309.1,23.66937817]
[1757043125218,0.001,4309.2,4309.1,23.37157817]
[1757043125587,0.2944,4309.2,4309.1,23.37157817]
[1757043125916,0.7235,4309.2,4309.1,22.57757817]
[1757043130022,0.001,4309.2,4309.1,22.57757817]
[1757043130327,0.001,4309.2,4309.1,23.36897817]
[1757043131197,0.001,4309.2,4309.1,23.46196694]
[1757043131800,0.001,4309.2,4309.1,23.46596694]
[1757043132489,0.001,4309.2,4309.1,27.25796694]
[1757043132691,0.001,4309.6,4309.5,2.3204548]
[1757043132928,0.001,4309.6,4309.5,13.79552248]
[1757043133081,0.001,4309.6,4309.5,15.35571794]
[1757043133413,0.001,4309.6,4309.5,21.84869417]
[1757043133612,0.001,4309.6,4309.5,24.84869417]
[1757043133984,0.001,4309.6,4309.5,25.28379417]
[1757043134597,0.001,4309.6,4309.5,24.84869417]
[1757043134823,0.001,4309.6,4309.5,27.18869417]
[1757043136539,0.001,4309.6,4309.5,26.71339417]
[1757043137199,0.001,4309.6,4309.5,26.39729417]
[1757043137419,0.001,4309.6,4309.5,27.18869417]
[1757043137921,0.001,4309.6,4309.5,27.62379417]
[1757043138120,0.001,4309.6,4309.5,27.18869417]
[1757043138801,0.001,4309.6,4309.5,26.71339417]
[1757043138999,0.001,4309.6,4309.5,26.39729417]
[1757043139597,0.001,4309.6,4309.5,25.96570157]
[1757043140928,0.001,4309.6,4309.5,26.44100157]
[1757043143720,0.001,4309.6,4309.5,25.64960157]
[1757043144320,0.001,4309.6,4309.5,26.44100157]
[1757043147142,0.02317136,4311.6,4309.9,2.32023944]
[1757043147309,0.025,4311.8,4309.9,2.32023944]
[1757043147310,0.474,4311.2,4310.1,3.11213178]
[1757043147638,0.474,4310.7,4310.1,10.01513178]
[1757043147832,0.3026,4310.2,4310.1,12.60509331]
[1757043148139,0.3026,4310.2,4310.1,18.77600128]
[1757043148330,0.001,4310.2,4310.1,18.77600128]
[1757043148529,0.001,4310.2,4310.1,20.00250128]
[1757043149337,0.4351,4311.2,4310.7,2.31980884]
[1757043149550,0.9091,4311.4,4310.7,15.57388043]
[1757043149723,0.9091,4311.4,4310.7,15.45535766]
[1757043150045,0.9091,4311.4,4310.7,22.55248653]
[1757043150630,0.474,4311.7,4310.7,23.02778653]
[1757043150936,0.4351,4311.5,4310.7,23.46288653]
[1757043151456,0.025,4311.8,4310.7,23.46288653]